bitfinex/quotes_ETHUSD_20250916
["timestamp","ask_amount","ask_price","bid_price","bid_amount"]
[1758048557400,0.002,4481.1,4481.0,3.56346116]
[1758048557997,0.002,4481.1,4481.0,3.12536116]
[1758048558394,0.002,4481.1,4481.0,5.19192255]
[1758048558715,0.002,4481.1,4481.0,5.16960611]
[1758048558894,0.002,4481.1,4481.0,8.36160611]
[1758048559214,0.002,4481.1,4481.0,11.36160611]
[1758048561426,0.002,4481.5,4481.4,3.02344553]
[1758048561719,0.002,4481.5,4481.4,16.81600544]
[1758048561926,0.002,4481.5,4481.4,17.99199099]
[1758048562087,0.002,4481.5,4481.4,20.39199099]
[1758048562744,0.002,4481.5,4481.4,19.95389099]
[1758048562906,0.002,4481.5,4481.4,13.1051417]
[1758048563393,0.2939,4481.5,4481.4,12.3131417]
[1758048564026,0.002,4481.5,4481.4,12.3131417]
[1758048564233,0.2939,4481.5,4481.4,9.3131417]
[1758048565114,1.1934,4481.5,4481.4,5.5681417]
[1758048565391,0.002,4481.5,4481.4,9.24454553]
[1758048565920,0.002,4481.5,4481.4,9.68934553]
[1758048567535,0.002,4481.5,4481.4,8.87512412]
[1758048567743,0.3154,4481.5,4481.4,4.83202412]
[1758048567941,1.2149,4481.5,4481.4,8.48664553]
[1758048568111,0.3154,4481.5,4481.4,6.08664553]
[1758048569477,1.2149,4481.5,4481.4,6.08664553]
[1758048569615,1.2149,4481.5,4481.4,7.09086588]
[1758048569616,0.3154,4481.5,4481.4,7.09086588]
[1758048569951,0.002,4481.5,4481.4,7.09086588]
[1758048570150,0.002,4481.5,4481.4,7.38896588]
[1758048570327,0.002,4481.5,4481.4,7.18024686]
[1758048570527,0.3154,4481.5,4481.4,7.18024686]
[1758048571121,0.002,4481.5,4481.4,7.47834686]
[1758048571319,0.002,4481.5,4481.4,7.93714686]
[1758048571854,0.002,4481.5,4481.4,10.78194686]
[1758048572031,0.002,4481.5,4481.4,10.33714686]
[1758048573421,0.002,4481.5,4481.4,9.87834686]
[1758048574150,0.3154,4481.5,4481.4,9.58024686]
[1758048574921,0.002,4481.5,4481.4,9.58024686]
[1758048575630,0.002,4481.5,4481.4,9.87834686]
[1758048576163,0.002,4481.5,4481.4,9.58024686]
[1758048576361,0.002,4481.5,4481.4,9.87834686]
[1758048576729,0.002,4481.5,4481.4,10.33714686]
[1758048577255,0.002,4481.5,4481.4,9.58024686]
[1758048577463,0.002,4481.5,4481.4,10.33714686]
[1758048577960,0.002,4481.5,4481.4,10.78194686]
[1758048578178,0.002,4481.5,4481.4,9.58024686]
[1758048578179,0.3154,4481.5,4481.4,9.58024686]
[1758048578353,1.2149,4481.5,4481.4,0.1112]
[1758048578534,0.3154,4481.5,4481.4,3.8552]
[1758048578870,1.2149,4481.5,4481.4,6.08664553]
[1758048579051,1.2149,4481.5,4481.4,3.8552]
[1758048579366,1.2149,4481.5,4481.4,0.1112]
[1758048579570,1.33679,4481.5,4480.8,0.001]
[1758048579729,0.02789306,4481.4,4481.1,0.1112]
[1758048579929,0.8995,4481.3,4481.2,3.744]
[1758048580150,0.002,4481.5,4481.3,2.34265903]
[1758048580458,1.2129,4481.4,4481.3,0.1112]
[1758048580665,1.2129,4481.4,4481.3,3.8552]
[1758048581652,1.2129,4481.4,4481.3,6.08669532]
[1758048581653,0.3134,4481.4,4481.3,6.08669532]
[1758048582062,1.2129,4481.4,4481.3,3.8552]
[1758048582788,1.2129,4481.4,4481.3,6.08669532]
[1758048583093,1.2129,4481.4,4481.3,3.8552]
[1758048584082,1.2129,4481.4,4481.3,0.1112]
[1758048584384,1.33459,4481.4,4481.3,3.744]
[1758048584584,1.2129,4481.4,4481.3,3.744]
[1758048586379,2.23154512,4481.2,4481.1,0.001]
[1758048586579,2.25943943,4481.2,4481.1,0.001]
[1758048586885,4.05403815,4481.2,4481.1,0.001]
[1758048587186,3.47233943,4481.2,4481.1,0.001]
[1758048587382,1.24079431,4481.2,4481.1,0.001]
[1758048591304,0.02989244,4481.5,4481.1,2.98944969]
[1758048591600,0.02989244,4481.5,4481.2,0.4588]
[1758048592195,0.02989244,4481.5,4481.1,2.23254969]
[1758048592363,0.02989244,4481.5,4481.1,0.001]
[1758048592364,0.9015,4481.5,4481.1,0.001]
[1758048592682,0.3134,4481.2,4481.1,0.001]
[1758048593050,0.002,4481.5,4481.1,0.001]
[1758048593051,0.002,4481.5,4481.1,3.45660563]
[1758048593258,0.002,4481.5,4481.2,0.4929]
[1758048593476,0.002,4481.5,4481.3,2.23148881]
[1758048594189,0.3067,4481.4,4481.2,2.23153382]
[1758048594374,0.002,4481.5,4481.3,0.3023]
[1758048594894,0.002,4481.5,4481.3,3.00618751]
[1758048595052,0.002,4481.5,4481.3,0.7747]
[1758048595258,0.775,4481.4,4481.1,4.6549001]
[1758048595497,0.775,4481.4,4481.1,2.23258416]
[1758048595796,0.3052,4481.4,4481.1,2.23258416]
[1758048595994,0.3052,4481.4,4481.2,2.23153868]
[1758048596301,0.002,4481.5,4481.3,0.3082]
[1758048597605,0.002,4481.5,4481.3,4.0522]
[1758048598579,0.002,4481.5,4481.2,2.70393906]
[1758048598580,1.2521,4481.4,4481.1,0.001]
[1758048598911,0.02989244,4481.5,4481.3,0.3082]
[1758048599077,0.002,4481.5,4481.3,2.53966145]
[1758048599276,0.002,4481.5,4481.3,3.01206145]
[1758048599661,0.002,4481.5,4481.3,0.7806]
[1758048600264,0.002,4481.5,4481.3,3.01209156]
[1758048600477,0.002,4481.5,4481.3,6.28369156]
[1758048600808,0.3052,4481.4,4481.3,3.744]
[1758048601485,1.2521,4481.4,4481.3,3.744]
[1758048601978,0.3052,4481.4,4481.3,3.744]
[1758048602424,0.002,4481.5,4481.3,4.0522]
[1758048602637,0.002,4481.5,4481.3,2.53967298]
[1758048602832,0.002,4481.5,4481.4,0.4724]
[1758048603031,0.002,4481.5,4481.4,4.11199292]
[1758048603237,0.002,4481.5,4481.4,4.53139292]
[1758048603528,0.002,4481.5,4481.4,4.50907847]
[1758048604321,0.002,4481.5,4481.4,6.31345486]
[1758048604516,0.002,4481.5,4481.4,8.71345486]
[1758048606704,0.002,4481.5,4481.4,12.45645486]
[1758048607640,0.002,4481.5,4481.4,13.24845486]
[1758048607849,0.002,4481.5,4481.4,16.24845486]
[1758048610852,0.002,4481.5,4481.4,10.79835486]
[1758048611052,0.002,4481.5,4481.4,14.54135486]
[1758048611252,0.002,4481.5,4481.4,15.01375486]
[1758048611731,0.002,4481.5,4481.4,14.23315486]
[1758048612230,0.002,4481.5,4481.4,15.45645486]
[1758048612430,0.002,4481.5,4481.4,21.54500415]
[1758048613865,0.002,4481.5,4481.4,20.52826453]
[1758048614061,0.3072,4481.5,4481.4,14.23315486]
[1758048614261,0.002,4481.5,4481.4,14.23315486]
[1758048614443,0.002,4481.5,4481.4,10.79835486]
[1758048614639,0.002,4481.5,4481.4,15.01375486]
[1758048614853,0.002,4481.5,4481.4,15.45645486]
[1758048615029,0.002,4481.5,4481.4,16.24845486]
[1758048618345,0.002,4482.0,4481.8,0.792]
[1758048618564,0.002,4482.0,4481.9,11.85931822]
[1758048618785,0.002,4482.0,4481.9,18.93514775]
[1758048619080,0.002,4482.0,4481.9,25.37024775]
[1758048621953,0.002,4482.0,4481.9,20.29843808]
[1758048622563,0.002,4482.5,4482.4,6.0229477]
[1758048622884,0.002,4482.5,4482.4,16.55075737]
[1758048623211,0.002,4482.5,4482.4,22.16343491]
[1758048623486,0.012,4482.9,4482.8,3.02274863]
[1758048623689,0.012,4482.9,4482.8,9.78705611]
[1758048623850,0.012,4482.9,4482.8,11.09924863]
[1758048624076,0.012,4482.9,4482.8,18.09924863]
[1758048624272,0.012,4482.9,4482.8,19.57012174]
[1758048624572,0.012,4482.9,4482.8,24.19923141]
[1758048624778,0.012,4482.9,4482.8,19.98483141]
[1758048624979,1.2879,4482.9,4482.8,14.88560136]
[1758048625179,1.2879,4482.9,4482.8,13.41472825]
[1758048625509,1.2879,4482.9,4482.8,9.67372825]
[1758048625809,0.7962,4482.9,4482.8,13.41472825]
[1758048626009,0.3262,4482.9,4482.8,13.41472825]
[1758048626175,1.2879,4482.9,4482.8,13.41472825]
[1758048626605,0.3262,4482.9,4482.8,14.51998791]
[1758048626810,0.3262,4482.9,4482.8,7.51998791]
[1758048626976,1.2879,4482.9,4482.8,7.51998791]
[1758048627408,0.3262,4482.9,4482.8,7.51998791]
[1758048629311,1.2879,4482.9,4482.8,7.51998791]
[1758048629489,1.2879,4482.9,4482.8,9.91998791]
[1758048631310,0.3262,4482.9,4482.8,9.91998791]
[1758048631521,0.3262,4482.9,4482.8,16.91998791]
[1758048633200,0.012,4482.9,4482.8,21.99179758]
[1758048633615,0.012,4482.9,4482.8,22.78209758]
[1758048633808,0.012,4482.9,4482.8,23.24919758]
[1758048634298,0.012,4482.9,4482.8,24.04119758]
[1758048634930,0.012,4482.9,4482.8,24.15239758]
[1758048635131,0.012,4482.9,4482.8,23.68529758]
[1758048635627,0.012,4482.9,4482.8,23.18869758]
[1758048635830,0.012,4482.9,4482.8,24.15239758]
[1758048636031,0.012,4482.9,4482.8,23.68529758]
[1758048636344,0.3262,4482.9,4482.8,13.29018791]
[1758048636669,1.2879,4482.9,4482.8,17.03118791]
[1758048636875,0.012,4482.9,4482.8,17.03118791]
[1758048637075,0.012,4482.9,4482.8,17.32488791]
[1758048637241,0.012,4482.9,4482.8,10.32488791]
[1758048637539,0.012,4482.9,4482.8,10.82148791]
[1758048638434,0.012,4482.9,4482.8,10.32488791]
[1758048638630,0.012,4482.9,4482.8,10.82148791]
[1758048638931,0.012,4482.9,4482.8,10.32388791]
[1758048639159,0.012,4482.9,4482.8,11.28758791]
[1758048639371,0.3262,4482.9,4482.8,10.03018791]
[1758048640388,1.2879,4482.9,4482.8,10.03118791]
[1758048640748,0.7962,4482.9,4482.8,6.29118791]
[1758048640978,1.2879,4482.9,4482.8,10.03118791]
[1758048641266,1.2879,4482.9,4482.8,7.18820829]
[1758048641757,1.2879,4482.9,4482.8,13.08294863]
[1758048641958,1.2879,4482.9,4482.8,10.8522]
[1758048642146,1.2879,4482.9,4482.8,13.08294863]
[1758048642879,0.3262,4482.9,4482.8,13.08294863]
[1758048643170,0.012,4482.9,4482.8,13.37664863]
[1758048643377,0.3262,4482.9,4482.8,15.19455401]
[1758048644629,0.3262,4482.9,4482.8,13.08294863]
[1758048644864,1.2879,4482.9,4482.8,10.8522]
[1758048645280,1.2879,4482.9,4482.8,7.1122]
[1758048645486,1.2879,4482.9,4482.8,10.8522]
[1758048646331,1.2879,4482.9,4482.8,0.1122]
[1758048646587,1.2879,4482.9,4482.8,3.8522]
[1758048649436,1.2879,4482.9,4482.8,0.1122]
[1758048649638,1.2879,4482.9,4482.8,3.8522]
[1758048649850,0.3262,4482.9,4482.8,6.08294863]
[1758048650973,0.3262,4482.9,4482.8,3.8522]
[1758048651293,1.2879,4482.9,4482.8,0.1122]
[1758048651581,1.2879,4482.9,4482.8,3.8522]
[1758048652771,1.2879,4482.9,4482.8,0.1122]
[1758048652986,1.2879,4482.9,4482.8,3.8522]
[1758048653483,0.3123,4482.9,4482.8,3.8522]
[1758048653673,1.2299,4482.9,4482.8,3.8522]
[1758048655290,3.58358887,4482.9,4482.8,0.001]
[1758048655472,6.99847446,4482.9,4482.8,0.001]
[1758048655888,7.476397,4482.9,4482.8,0.001]
[1758048656490,6.99847446,4482.9,4482.8,0.001]
[1758048657265,6.79104933,4482.9,4482.8,0.001]
[1758048657903,10.32358887,4482.9,4482.8,0.001]
[1758048658798,10.53086554,4482.9,4482.8,0.001]
[1758048662619,10.73798018,4482.9,4482.8,0.001]
[1758048663183,10.53086554,4482.9,4482.8,0.001]
[1758048666833,11.52996913,4482.9,4482.8,0.001]
[1758048667009,12.00712287,4482.9,4482.8,0.001]
[1758048671949,17.08223971,4482.9,4482.8,0.001]
[1758048673570,17.08181457,4482.9,4482.8,0.001]
[1758048673881,18.09691842,4482.9,4482.8,0.001]
[1758048674089,15.86621955,4482.9,4480.8,0.001]
[1758048674238,2.23154512,4481.2,4480.8,0.001]
[1758048674565,9.20621308,4481.2,4480.8,0.001]
[1758048674737,8.97154512,4481.2,4481.1,0.3039]
[1758048675175,8.97154512,4481.2,4481.1,0.001]
[1758048675364,10.35651384,4481.2,4481.1,0.001]
[1758048676742,11.30811384,4481.2,4481.1,0.001]
[1758048677954,12.30667028,4481.2,4481.1,0.001]
[1758048678272,11.81017028,4481.2,4481.1,0.001]
[1758048678972,12.30667028,4481.2,4481.1,0.001]
[1758048680161,12.98854029,4481.2,4481.1,0.001]
[1758048680496,7.31287028,4481.2,4481.1,0.3039]
[1758048680703,11.05387028,4481.2,4481.1,0.3039]
[1758048680998,11.05387028,4481.2,4481.1,0.001]
[1758048681295,11.35607028,4481.2,4481.1,0.001]
[1758048681861,12.78308912,4481.2,4481.1,0.001]
[1758048682292,12.78321296,4481.2,4481.1,0.001]
[1758048682881,12.30767028,4481.2,4481.1,0.001]
[1758048683082,11.81117028,4481.2,4481.1,0.001]
[1758048683284,12.28677304,4481.2,4481.1,0.001]
[1758048683898,11.52947304,4481.2,4481.1,0.001]
[1758048684093,11.52947304,4481.2,4481.1,0.3039]
[1758048684663,3.6821592,4481.2,4481.1,0.7492]
[1758048684863,0.47560276,4481.6,4481.1,1.2019]
[1758048685066,3.741,4482.0,4481.2,0.898]
[1758048685290,2.23120126,4481.9,4481.2,0.898]
[1758048685475,3.741,4482.0,4481.8,0.2854]
[1758048685666,5.9721468,4482.0,4481.9,0.898]
[1758048685997,5.9721468,4482.0,4481.9,0.2854]
[1758048686184,5.9721468,4482.0,4481.9,0.7381]
[1758048686371,5.9721468,4482.0,4481.9,1.1834]
[1758048687702,3.741,4482.0,4481.9,1.1834]
[1758048688421,5.9721468,4482.0,4481.9,1.1834]
[1758048689403,3.741,4482.0,4481.9,1.1834]
[1758048690284,3.741,4482.5,4482.0,2.23113552]
[1758048690477,0.012,4482.9,4482.4,0.2854]
[1758048690782,3.741,4482.8,4482.4,0.2854]
[1758048690984,0.012,4482.9,4482.5,0.898]
[1758048691308,0.012,4482.9,4482.6,0.14064848]
[1758048691620,0.012,4482.9,4482.8,0.2854]
[1758048692108,0.012,4482.9,4482.8,1.1834]
[1758048692679,0.012,4482.9,4482.8,3.41414863]
[1758048694990,0.012,4482.9,4482.8,5.92534863]
[1758048695180,0.012,4482.9,4482.8,6.75503135]
[1758048695826,0.012,4482.9,4482.8,4.52428272]
[1758048695990,0.012,4482.9,4482.8,5.92534863]
[1758048696523,0.012,4482.9,4482.8,3.6946]
[1758048697130,0.012,4482.9,4482.8,1.2946]
[1758048697997,0.012,4482.9,4482.8,3.52534863]
[1758048698398,0.012,4482.9,4482.8,3.41414863]
[1758048698597,0.012,4482.9,4482.8,4.71567964]
[1758048700246,0.012,4482.9,4482.8,8.50767964]
[1758048700914,0.012,4482.9,4482.8,10.90767964]
[1758048701302,0.002,4483.4,4483.3,2.23049985]
[1758048701503,0.002,4483.4,4483.3,8.58669985]
[1758048701705,0.002,4483.4,4483.3,9.95382682]
[1758048701906,0.002,4483.4,4483.3,13.25182682]
[1758048702240,0.002,4483.4,4483.3,16.14062682]
[1758048706562,0.002,4483.4,4483.3,11.16432682]
[1758048706731,0.002,4483.4,4483.3,9.04962682]
[1758048707363,0.002,4483.4,4483.3,12.04962682]
[1758048707544,0.307,4483.4,4483.3,7.68249985]
[1758048707745,0.307,4483.4,4483.3,10.68249985]
[1758048707944,0.307,4483.4,4483.3,6.94449985]
[1758048708144,0.307,4483.4,4483.3,10.68249985]
[1758048708346,0.002,4483.4,4483.3,10.68249985]
[1758048708746,0.307,4483.4,4483.3,8.452]
[1758048708944,0.307,4483.4,4483.3,1.714]
[1758048709259,0.307,4483.4,4482.9,0.4687]
[1758048709260,1.2351,4483.4,4482.9,2.235]
[1758048709464,0.9281,4483.3,4482.9,2.235]
[1758048709635,0.9281,4483.3,4482.9,4.46569611]
[1758048709830,0.305,4483.0,4482.9,4.46569611]
[1758048710036,0.305,4483.0,4482.9,2.235]
[1758048710263,1.2331,4483.0,4482.9,2.235]
[1758048710463,1.2331,4483.0,4482.6,1.714]
[1758048710666,0.9281,4482.9,4482.7,3.738]
[1758048710836,0.305,4482.8,4482.7,3.738]
[1758048711030,0.305,4482.8,4482.7,5.9687984]
[1758048711673,0.9281,4483.1,4482.7,3.738]
[1758048712172,0.9281,4483.1,4482.8,0.1112]
[1758048712668,0.305,4482.9,4482.8,0.1112]
[1758048712875,0.305,4482.9,4482.8,2.34194863]
[1758048713164,0.3145,4482.9,4482.8,2.34194863]
[1758048713358,0.3145,4482.9,4482.8,0.1112]
[1758048714054,0.3145,4482.9,4482.8,2.34194863]
[1758048714364,0.475,4483.4,4483.0,2.23064475]
[1758048714569,0.475,4483.4,4483.1,3.738]
[1758048714768,0.2863,4483.2,4483.1,3.738]
[1758048716958,0.002,4483.4,4483.1,4.0301]
[1758048717158,0.002,4483.4,4483.1,6.8479921]
[1758048717342,0.002,4483.4,4483.2,0.49840549]
[1758048717542,0.002,4483.4,4483.3,8.36849985]
[1758048717772,0.002,4483.4,4483.3,6.9062]
[1758048717976,0.002,4483.4,4483.3,6.138]
[1758048718763,0.002,4483.4,4483.3,8.66059985]
[1758048719161,0.002,4483.4,4483.3,10.72425332]
[1758048719477,0.002,4483.4,4483.3,10.83545332]
[1758048722101,0.002,4483.4,4483.3,10.39575332]
[1758048722269,0.002,4483.4,4483.3,10.83545332]
[1758048724210,0.002,4483.4,4483.3,14.62745332]
[1758048725829,0.002,4483.4,4483.3,13.39575332]
[1758048726109,0.002,4483.4,4483.3,12.91965332]
[1758048726325,0.002,4483.4,4483.3,13.39575332]
[1758048727109,0.002,4483.4,4483.3,13.83545332]
[1758048727476,0.002,4483.4,4483.3,12.62755332]
[1758048727477,0.2883,4483.4,4483.3,12.62755332]
[1758048727879,0.002,4483.4,4483.3,12.91965332]
[1758048729189,0.2883,4483.4,4483.3,12.62655332]
[1758048729391,0.7539,4483.4,4483.3,11.47869985]
[1758048729826,0.2883,4483.4,4483.3,11.47869985]
[1758048730126,1.2097,4483.4,4483.3,0.1112]
[1758048730303,3.4401501,4483.4,4483.2,3.737]
[1758048730503,3.27288289,4483.3,4483.1,3.737]
[1758048730701,1.2077,4483.2,4482.8,0.1122]
[1758048730902,1.2077,4483.2,4482.9,3.737]
[1758048731104,0.9214,4483.1,4482.8,0.1122]
[1758048731306,0.9214,4483.1,4482.9,3.737]
[1758048731502,1.2077,4483.0,4482.9,3.737]
[1758048732804,0.7519,4483.0,4482.9,5.96769887]
[1758048733229,1.2077,4483.0,4482.9,3.737]
[1758048736619,1.2077,4483.0,4482.8,0.1122]
[1758048736893,0.2863,4483.0,4482.9,3.737]
[1758048737533,0.2863,4483.0,4482.9,5.96769887]
[1758048737734,0.002,4483.4,4482.9,4.5052]
[1758048738258,0.2863,4483.0,4482.8,0.1122]
[1758048738458,0.7421,4483.0,4482.9,3.737]
[1758048739162,0.7519,4483.0,4482.9,3.737]
[1758048739460,0.002,4483.4,4483.0,2.23061315]
[1758048739629,0.002,4483.4,4483.1,3.737]
[1758048739835,0.4676,4483.4,4483.1,3.737]
[1758048740032,0.002,4483.4,4483.3,0.2921]
[1758048740237,0.002,4483.4,4483.3,4.1403]
[1758048740631,0.002,4483.4,4483.3,6.37079985]
[1758048740833,0.002,4483.4,4483.3,7.28659985]
[1758048741237,0.002,4483.4,4483.3,6.84689985]
[1758048742051,0.002,4483.4,4483.3,7.10199431]
[1758048742363,0.002,4483.4,4483.3,7.54169431]
[1758048743746,0.2883,4483.4,4483.3,3.8482]
[1758048744076,1.2097,4483.4,4483.0,0.1112]
[1758048744250,5.06983983,4483.1,4483.0,3.737]
[1758048744450,7.23974917,4483.1,4482.9,3.737]
[1758048744651,0.927,4483.0,4482.9,3.737]
[1758048745064,1.2164,4483.0,4482.9,3.737]
[1758048745373,1.2164,4483.0,4482.8,0.001]
[1758048745576,0.927,4482.9,4482.8,0.001]
[1758048745775,0.4897,4483.4,4483.0,2.23064172]
[1758048745956,1.0402,4483.4,4483.1,3.737]
[1758048746152,1.0402,4483.4,4483.3,2.51909985]
[1758048746153,0.002,4483.4,4483.3,2.51909985]
[1758048746365,0.002,4483.4,4483.3,4.28680506]
[1758048746552,0.002,4483.4,4483.3,4.39800506]
[1758048747079,0.002,4483.4,4483.3,6.79800506]
[1758048747678,0.002,4483.4,4483.3,6.68680506]
[1758048747879,0.002,4483.4,4483.3,6.79800506]
[1758048753296,0.002,4483.4,4483.3,10.59000506]
[1758048755576,0.002,4483.4,4483.3,9.79800506]
[1758048756132,0.002,4483.4,4483.3,13.53500506]
[1758048757433,1e-08,4483.6,4483.5,3.02240035]
[1758048757735,1e-08,4483.6,4483.5,10.53902089]
[1758048757900,1e-08,4483.6,4483.5,11.74442089]
[1758048758100,1e-08,4483.6,4483.5,14.14442089]
[1758048758496,1e-08,4483.6,4483.5,9.61542089]
[1758048758697,0.28940001,4483.6,4483.5,12.15002089]
[1758048758929,1e-08,4483.6,4483.5,12.43862089]
[1758048759496,1e-08,4483.6,4483.5,12.89722089]
[1758048759898,0.28940001,4483.6,4483.5,12.15202089]
[1758048761310,0.28940001,4483.6,4483.5,11.41002089]
[1758048761517,0.28940001,4483.6,4483.5,15.15202089]
[1758048762835,0.28940001,4483.6,4483.5,15.59377072]
[1758048763231,1e-08,4483.6,4483.5,15.59377072]
[1758048763635,1e-08,4483.6,4483.5,15.59177072]
[1758048764946,1e-08,4483.6,4483.5,16.79717072]
[1758048765945,1e-08,4483.6,4483.5,21.86381308]
[1758048767046,1e-08,4483.6,4483.5,22.65581308]
[1758048767544,1e-08,4483.6,4483.5,22.76701308]
[1758048771454,1e-08,4483.6,4483.5,22.30881308]
[1758048771957,0.012,4483.9,4483.7,5.23030086]
[1758048772132,0.012,4483.9,4483.7,11.18525967]
[1758048772332,0.012,4483.9,4483.7,11.47385967]
[1758048772532,0.012,4483.9,4483.7,13.87385967]
[1758048772835,0.012,4483.9,4483.7,13.58525967]
[1758048773036,0.012,4483.9,4483.7,13.87385967]
[1758048773526,0.012,4483.9,4483.7,13.58525967]
[1758048773856,0.012,4483.9,4483.7,9.84825967]
[1758048774056,0.012,4483.9,4483.7,13.58525967]
[1758048774361,0.012,4483.9,4483.7,14.79595967]
[1758048777850,0.012,4483.9,4483.7,14.35295967]
[1758048778647,0.012,4483.9,4483.7,13.87235967]
[1758048779565,0.012,4483.9,4483.7,14.32475967]
[1758048780055,0.012,4483.9,4483.7,14.76085967]
[1758048780971,0.2995,4483.8,4483.7,7.61795881]
[1758048781141,1.2346,4483.8,4483.7,8.96630086]
[1758048781469,0.002,4483.8,4483.7,9.27020086]
[1758048781636,0.002,4483.8,4483.7,12.55870086]
[1758048781832,0.002,4483.8,4483.7,14.77096762]
[1758048782269,0.002,4483.8,4483.7,14.88216762]
[1758048783067,0.002,4483.8,4483.7,21.88216762]
[1758048783237,0.002,4483.8,4483.7,20.99366762]
[1758048783436,0.2995,4483.8,4483.7,20.68976762]
[1758048783770,0.002,4483.8,4483.7,26.06030998]
[1758048786462,0.2995,4483.8,4483.7,25.75640998]
[1758048786980,1.2346,4483.8,4483.7,18.47750086]
[1758048787170,1.2346,4483.8,4483.7,13.8472]
[1758048787361,1.2346,4483.8,4483.7,10.8472]
[1758048787543,1.2346,4483.8,4483.7,3.8472]
[1758048788475,1.2346,4483.8,4483.7,0.1112]
[1758048788666,1.2346,4483.8,4483.7,3.8472]
[1758048790072,1.2346,4483.8,4483.7,6.07750086]
[1758048790974,0.7825,4483.8,4483.7,6.07750086]
[1758048791275,0.002,4483.8,4483.7,7.3836906]
[1758048791475,0.002,4483.8,4483.7,7.0797906]
[1758048791673,0.002,4483.8,4483.7,10.8360906]
[1758048792261,0.002,4483.8,4483.7,10.3836906]
[1758048793055,0.002,4483.8,4483.7,10.8360906]
[1758048793309,0.002,4483.8,4483.7,13.2360906]
[1758048793897,0.2995,4483.8,4483.7,12.4797906]
[1758048794096,0.2995,4483.8,4483.7,11.47750086]
[1758048795487,0.002,4483.8,4483.7,11.47750086]
[1758048795686,0.002,4483.8,4483.7,12.66990086]
[1758048798975,1.2346,4483.8,4483.7,11.47750086]
[1758048799299,0.7825,4483.8,4483.7,11.47750086]
[1758048799496,0.2995,4483.8,4483.7,13.4407906]
[1758048800079,0.002,4483.8,4483.7,13.4407906]
[1758048800277,0.2995,4483.8,4483.7,13.4407906]
[1758048802785,1.2346,4483.8,4483.7,13.4407906]
[1758048802986,0.7825,4483.8,4483.7,13.4407906]
[1758048804220,1.2346,4483.8,4483.7,13.4407906]
[1758048804421,1.2346,4483.8,4483.7,6.8472]
[1758048804831,1.2346,4483.8,4483.7,3.8472]
[1758048805322,1.2346,4483.8,4483.7,6.07750086]
[1758048805909,1.2346,4483.8,4483.7,0.1112]
[1758048806109,1.2346,4483.8,4483.7,6.07750086]
[1758048808628,1.2346,4483.8,4483.7,0.1112]
[1758048808816,1.2346,4483.8,4483.7,3.8472]
[1758048809026,1.2346,4483.8,4483.7,0.1112]
[1758048809227,1.2346,4483.8,4483.7,3.8472]
[1758048809798,1.2346,4483.8,4483.7,6.07750086]
[1758048810328,0.7825,4483.8,4483.7,6.07750086]
[1758048810490,1.2244,4483.8,4483.7,3.8472]
[1758048813433,1.2244,4483.8,4483.7,6.39000086]
[1758048813605,0.002,4483.8,4483.7,10.96095454]
[1758048814142,0.002,4483.8,4483.7,13.36095454]
[1758048817414,0.002,4483.8,4483.7,12.91725454]
[1758048817615,0.002,4483.8,4483.7,13.36095454]
[1758048818524,0.002,4483.8,4483.7,17.57095454]
[1758048821575,0.002,4484.1,4484.0,2.23015165]
[1758048821730,0.002,4484.1,4484.0,10.92676378]
[1758048821931,0.002,4484.1,4484.0,12.11976227]
[1758048822144,0.002,4484.1,4484.0,14.51976227]
[1758048823129,0.002,4484.1,4484.0,15.31176227]
[1758048823687,0.002,4484.1,4484.0,15.42296227]
[1758048824057,0.002,4484.1,4484.0,11.68696227]
[1758048824373,0.002,4484.1,4484.0,15.42296227]
[1758048825495,0.002,4484.1,4484.0,16.09271351]
[1758048825984,0.002,4484.1,4484.0,15.42296227]
[1758048828653,0.002,4484.1,4484.0,16.09276585]
[1758048832372,0.002,4484.1,4484.0,9.56846227]
[1758048832567,0.3095,4484.1,4484.0,13.30346227]
[1758048832767,0.002,4484.1,4484.0,14.09546227]
[1758048833189,0.002,4484.1,4484.0,14.88276227]
[1758048833498,0.002,4484.1,4484.0,15.34796227]
[1758048834360,0.002,4484.1,4484.0,16.01775389]
[1758048839405,0.002,4484.1,4484.0,20.22775389]
[1758048839801,0.3168,4484.1,4484.0,18.97525389]
[1758048840498,0.4543,4484.3,4484.2,3.02205218]
[1758048840704,0.4543,4484.3,4484.2,16.18501099]
[1758048841406,0.4586,4484.3,4484.2,16.18501099]
[1758048841707,0.0043,4484.3,4484.2,16.18501099]
[1758048841874,0.4586,4484.3,4484.2,16.18501099]
[1758048842079,0.8845,4484.3,4484.2,16.18501099]
[1758048842478,0.4586,4484.3,4484.2,16.29621099]
[1758048843908,0.4586,4484.3,4484.2,12.56121099]
[1758048844213,0.4586,4484.3,4484.2,16.29621099]
[1758048844913,0.002,4484.6,4484.5,2.22990299]
[1758048845079,0.002,4484.6,4484.5,11.66369431]
[1758048845285,0.4606,4484.6,4484.5,11.75259529]
[1758048845478,0.002,4484.6,4484.5,11.75259529]
[1758048847186,0.4606,4484.6,4484.5,11.75259529]
[1758048848181,0.4563,4484.6,4484.5,11.75259529]
[1758048848381,0.002,4484.6,4484.5,11.75259529]
[1758048848890,0.002,4484.6,4484.5,12.85239529]
[1758048849203,0.002,4484.6,4484.5,13.74989529]
[1758048849585,0.002,4484.6,4484.5,19.83066725]
[1758048850726,0.002,4484.6,4484.5,18.93316725]
[1758048851197,0.002,4484.6,4484.5,23.14316725]
[1758048852491,0.0063,4484.6,4484.5,13.01959529]